{"text_format":"1","workbook":"xlsx","n_sheets":6,"sheets":["WA Electric - Sched 91","Revenue By Month","DSM Balance","Rev Conv Factor","Billing Determinants","Base Revenue"],"not_rendered":{"charts":0,"images":0,"macros":0,"external_links":3,"defined_names":6,"comments":4,"pivot_tables":0},"unopened":[],"bounds":{"document_bytes":16777216,"sheet_cells":100000,"rows_first":2000,"rows_last":500,"rows_between":2000,"halvings":0,"cell_chars":16384,"cell_head_chars":4096},"cells_cut":0,"cells_raw":0,"read":"whole","date_system":"1900"}

{"sheet":"WA Electric - Sched 91","index":0,"n_rows":45,"n_cols":12,"rows_kept":45,"cut":false,"hidden":false,"merged":[]}
[]
[null,""]
[]
[null,null," ","RESIDENTIAL","GENERAL SVC. ","LG. GEN. SVC.","EX LG GEN SVC","PUMPING","ST & AREA LTG"]
["Source",null,"TOTAL","SCHEDULE 1,2","SCH. 11,12","SCH. 21,22","SCHEDULE 25","SCH. 30, 31, 32","SCH. 41-48"]
[]
["Forecast","Total Annual Forecasted kWh's",{"$f":"SUM(D7:I7)","v":5774288887.2577696},{"$f":"SUM('Billing Determinants'!$I19:$T19)","v":2480476705.4130487},{"$f":"SUM('Billing Determinants'!I20:T20)","v":629495779.05559993},{"$f":"SUM('Billing Determinants'!I21:T21)","v":1409914150.9637947},{"$f":"SUM('Billing Determinants'!I22:T22)","v":1108185236.4783432},{"$f":"SUM('Billing Determinants'!I23:T23)","v":128788950.23368342},{"$f":"SUM('Billing Determinants'!I24:T24)","v":17428065.113299623},null,null,"August 2018 - July 2019"]
[]
[null,"Present DSM Rates",null,3.4399999999999999E-3,4.6299999999999996E-3,3.6600000000000001E-3,2.32E-3,3.4099999999999998E-3,1.2149999999999999E-2]
[]
[null,"Present Annual DSM Revenue",{"$f":"SUM(D11:I11)","v":19829602.176229011},{"$f":"D7*D9","v":8532839.8666208871},{"$f":"E7*E9","v":2914565.4570274274},5160285.7925274884,2570989.7486297563,439170.32029686047,{"$f":"I7*I9","v":211750.99112659041}]
[]
["UE-170485","Base Revenue",{"$f":"SUM(D13:I13)","v":502897000},{"$f":"ROUND('Base Revenue'!F14*1000,-3)","v":214393000},{"$f":"ROUND('Base Revenue'!F16*1000,-3)","v":75057000},{"$f":"ROUND('Base Revenue'!F18*1000,-3)","v":129541000},{"$f":"ROUND('Base Revenue'!F20*1000,-3)","v":65753000},{"$f":"ROUND('Base Revenue'!F22*1000,-3)","v":11132000},{"$f":"ROUND('Base Revenue'!F24*1000,-3)","v":7021000}]
[]
[null,"Percentage of Current Base Volumetric Revenue",{"$f":"SUM(D15:I15)","v":1},{"$f":"D13/$C$13","v":0.4263159255274937},{"$f":"E13/$C$13","v":0.14924924984639001},{"$f":"F13/$C$13","v":0.25758952628470644},{"$f":"G13/$C$13","v":0.13074844351825524},2.2135745490627304E-2,{"$f":"I13/$C$13","v":1.3961109332527337E-2}]
[]
[null,"Revenue Requirement ",25176479.182313811]
[]
[null,"Revenue Spread Based on Current Allocation",{"$f":"SUM(D19:I19)","v":25176479.182313815},{"$f":"$C$17*D15","v":10733134.02413179},{"$f":"$C$17*E15","v":3757570.6317335907},{"$f":"$C$17*F15","v":6485197.3460889878},{"$f":"$C$17*G15","v":3291785.4663572861},557300.13552977517,{"$f":"$C$17*I15","v":351491.57847238157}]
[]
[null,"DSM Revenue Increase <Decrease> ",{"$f":"C19-C11","v":5346877.0060848035},{"$f":"D19-D11","v":2200294.1575109027},{"$f":"E19-E11","v":843005.17470616335},{"$f":"F19-F11","v":1324911.5535614993},{"$f":"G19-G11","v":720795.71772752982},{"$f":"H19-H11","v":118129.8152329147},139740.58734579117]
[]
[null,"Proposed DSM Rates",null,{"$f":"D19/D7","v":4.3270448783934495E-3},{"$f":"E19/E7","v":5.9691752617799599E-3},{"$f":"F19/F7","v":4.5997107991687372E-3},2.9704289120635798E-3,4.3272356403136446E-3,{"$f":"I19/I7","v":2.0168135486489144E-2}]
[]
[null,"Percentage Increase <Decrease>",{"$f":"C19/C11-1","v":0.26964116367873681},{"$f":"D19/D11-1","v":0.25786188325390991},{"$f":"E19/E11-1","v":0.28923871744707585},{"$f":"F19/F11-1","v":0.25675158447233271},{"$f":"G19/G11-1","v":0.28035728968257745},0.26898405874300413,0.65992884662462092]
[]
[null,"Present Billed Revenue",{"$f":"SUM(D27:I27)","v":534292000},232082000,78742000,135958000,68455000,11682000,7373000]
[]
[null,"Proposed Billed Revenue",{"$f":"SUM(D29:I29)","v":539638877.00608492},{"$f":"D21+D27","v":234282294.15751091},{"$f":"E21+E27","v":79585005.174706161},137282911.55356151,{"$f":"G21+G27","v":69175795.717727527},{"$f":"H21+H27","v":11800129.815232914},{"$f":"I21+I27","v":7512740.587345791}]
[]
[null,"Overall Billed Percentage Increase <Decrease>",{"$f":"C29/C27-1","v":1.0007406073991199E-2},{"$f":"D29/D27-1","v":9.4806756125460634E-3},{"$f":"E29/E27-1","v":1.0705915200352578E-2},{"$f":"F29/F27-1","v":9.7450062045743024E-3},{"$f":"G29/G27-1","v":1.0529482400518875E-2},1.0112122516085842E-2,1.895301605123989E-2]
[]
[]
[null,"Present DSM Revenue as a Percentage of Billed Revenue",{"$f":"C11/C27","v":3.7113792039238862E-2}]
[]
[null,"Percentage DSM Decrease",{"$f":"C21/C11","v":0.26964116367873686}]
[]
[null,null,"Present","Proposed","Change"]
[null,"Gross DSM Revenue",{"$f":"C11","v":19829602.176229011},{"$f":"C19","v":25176479.182313815},{"$f":"D39-C39","v":5346877.0060848035}]
[null,"Revenue Conversion Factor",{"$f":"'Rev Conv Factor'!E22","v":0.95332300000000003},{"$f":"'Rev Conv Factor'!E22","v":0.95332300000000003}]
[]
[null,"Net DSM Revenue ",{"$f":"C39*C40","v":18904015.83544917},{"$f":"D39*D40","v":24001316.663520955},{"$f":"D42-C42","v":5097300.8280717842}]
[]
[null,null,"Present","Proposed"]
[null,"Average Monthly Bill @ 938 kWh's - Increase <Decrease>",{"$f":"9+(800*0.08289)+(138*0.09521)","v":88.450980000000001},{"$f":"9+(800*(0.08289+(D23-D9))+(138*(0.09521+(ROUND(D23,5)-D9))))","v":89.283435902714757},{"$f":"D45-C45","v":0.83245590271475578},{"$f":"E45/C45","v":9.4114943974024454E-3}]

{"sheet":"Revenue By Month","index":1,"n_rows":39,"n_cols":36,"rows_kept":39,"cut":false,"hidden":false,"merged":[]}
[]
[]
[]
["Forecasted Usage",null,null,"2018-01-18","2018-02-18","2018-03-18","2018-04-18","2018-05-18","2018-06-18","2018-07-18","2018-08-18","2018-09-18","2018-10-18","2018-11-18","2018-12-18","2019-01-18","2019-02-18","2019-03-18","2019-04-18","2019-05-18","2019-06-18","2019-07-18","2019-08-18","2019-09-18","2019-10-18","2019-11-18","2019-12-18","2020-01-18","2020-02-18","2020-03-18","2020-04-18","2020-05-18","2020-06-18","2020-07-18"]
[null,"Residential Schedule 001",null,{"$f":"'Billing Determinants'!B19","v":0},{"$f":"'Billing Determinants'!C19","v":0},{"$f":"'Billing Determinants'!D19","v":219310472.29330951},{"$f":"'Billing Determinants'!E19","v":183580366.01292348},{"$f":"'Billing Determinants'!F19","v":167768708.60094827},{"$f":"'Billing Determinants'!G19","v":159521698.52304149},{"$f":"'Billing Determinants'!H19","v":193305007.87713596},{"$f":"'Billing Determinants'!I19","v":184858018.66584671},{"$f":"'Billing Determinants'!J19","v":157638755.90837884},{"$f":"'Billing Determinants'!K19","v":178027618.52495447},{"$f":"'Billing Determinants'!L19","v":224687935.76180804},{"$f":"'Billing Determinants'!M19","v":287544776.95214874},{"$f":"'Billing Determinants'!N19","v":279942481.0812003},{"$f":"'Billing Determinants'!O19","v":231672872.20213655},{"$f":"'Billing Determinants'!P19","v":229723951.31659308},{"$f":"'Billing Determinants'!Q19","v":185171741.33892757},{"$f":"'Billing Determinants'!R19","v":171212541.6441766},{"$f":"'Billing Determinants'!S19","v":160461830.96421695},{"$f":"'Billing Determinants'!T19","v":189534181.05266076},{"$f":"'Billing Determinants'!U19","v":187528324.38774115},{"$f":"'Billing Determinants'!V19","v":157828462.90979946},{"$f":"'Billing Determinants'!W19","v":178626443.76745471},{"$f":"'Billing Determinants'!X19","v":225784329.30652326},{"$f":"'Billing Determinants'!Y19","v":288996352.48574626},{"$f":"'Billing Determinants'!Z19","v":281691737.48320621},{"$f":"'Billing Determinants'!AA19","v":231732549.64478761},{"$f":"'Billing Determinants'!AB19","v":229836898.02972108},{"$f":"'Billing Determinants'!AC19","v":187736553.19409919},{"$f":"'Billing Determinants'!AD19","v":171313161.30302614},{"$f":"'Billing Determinants'!AE19","v":162935154.04129845},{"$f":"'Billing Determinants'!AF19","v":193877848.95705023}]
[null,"General Svc Schedule 011/012",null,{"$f":"'Billing Determinants'!B20","v":0},{"$f":"'Billing Determinants'!C20","v":0},{"$f":"'Billing Determinants'!D20","v":52692521.022441961},{"$f":"'Billing Determinants'!E20","v":46888913.141686767},{"$f":"'Billing Determinants'!F20","v":46559333.98631683},{"$f":"'Billing Determinants'!G20","v":46932059.280476339},{"$f":"'Billing Determinants'!H20","v":55700578.493706077},{"$f":"'Billing Determinants'!I20","v":52408626.756127857},{"$f":"'Billing Determinants'!J20","v":46125169.938899539},{"$f":"'Billing Determinants'!K20","v":50502330.501072794},{"$f":"'Billing Determinants'!L20","v":54600476.222848378},{"$f":"'Billing Determinants'!M20","v":62093440.31619224},{"$f":"'Billing Determinants'!N20","v":60182835.490717493},{"$f":"'Billing Determinants'!O20","v":52657856.818118177},{"$f":"'Billing Determinants'!P20","v":54554045.108691469},{"$f":"'Billing Determinants'!Q20","v":47099932.022307232},{"$f":"'Billing Determinants'!R20","v":47376343.589266263},{"$f":"'Billing Determinants'!S20","v":47176671.150964044},{"$f":"'Billing Determinants'!T20","v":54718051.140394583},{"$f":"'Billing Determinants'!U20","v":53080944.884963818},{"$f":"'Billing Determinants'!V20","v":46096659.143834449},{"$f":"'Billing Determinants'!W20","v":50771605.410948418},{"$f":"'Billing Determinants'!X20","v":55049282.542301022},{"$f":"'Billing Determinants'!Y20","v":62415467.34567672},{"$f":"'Billing Determinants'!Z20","v":60331051.662805624},{"$f":"'Billing Determinants'!AA20","v":52374429.787524953},{"$f":"'Billing Determinants'!AB20","v":54279713.728574969},{"$f":"'Billing Determinants'!AC20","v":47496831.593892343},{"$f":"'Billing Determinants'!AD20","v":47122609.576166816},{"$f":"'Billing Determinants'!AE20","v":47924079.484209143},{"$f":"'Billing Determinants'!AF20","v":56165964.738963589}]
[null,"Large Gen Svc Schedule 021/022",null,{"$f":"'Billing Determinants'!B21","v":0},{"$f":"'Billing Determinants'!C21","v":0},{"$f":"'Billing Determinants'!D21","v":112516450.91883993},{"$f":"'Billing Determinants'!E21","v":106282214.91826817},{"$f":"'Billing Determinants'!F21","v":111294017.22501689},{"$f":"'Billing Determinants'!G21","v":114630212.73894058},{"$f":"'Billing Determinants'!H21","v":132582990.25462703},{"$f":"'Billing Determinants'!I21","v":123363787.30859637},{"$f":"'Billing Determinants'!J21","v":110726905.48951322},{"$f":"'Billing Determinants'!K21","v":121196353.99196792},{"$f":"'Billing Determinants'!L21","v":120906426.82594916},{"$f":"'Billing Determinants'!M21","v":126402638.79304725},{"$f":"'Billing Determinants'!N21","v":120336777.71357971},{"$f":"'Billing Determinants'!O21","v":107297406.5241687},{"$f":"'Billing Determinants'!P21","v":115916480.21180765},{"$f":"'Billing Determinants'!Q21","v":106231087.87679942},{"$f":"'Billing Determinants'!R21","v":112870560.18362877},{"$f":"'Billing Determinants'!S21","v":114860194.38769326},{"$f":"'Billing Determinants'!T21","v":129805531.65704341},{"$f":"'Billing Determinants'!U21","v":124329910.22484061},{"$f":"'Billing Determinants'!V21","v":110089869.59610179},{"$f":"'Billing Determinants'!W21","v":121447723.81611155},{"$f":"'Billing Determinants'!X21","v":121635904.99864694},{"$f":"'Billing Determinants'!Y21","v":126384251.33381419},{"$f":"'Billing Determinants'!Z21","v":119863379.71079354},{"$f":"'Billing Determinants'!AA21","v":105967738.820464},{"$f":"'Billing Determinants'!AB21","v":114308944.5495103},{"$f":"'Billing Determinants'!AC21","v":106141526.99244551},{"$f":"'Billing Determinants'!AD21","v":111440057.08626369},{"$f":"'Billing Determinants'!AE21","v":116202281.60411908},{"$f":"'Billing Determinants'!AF21","v":132690754.40330026}]
[null,"Extra Large Gen Schedule 25",null,{"$f":"'Billing Determinants'!B22","v":0},{"$f":"'Billing Determinants'!C22","v":0},{"$f":"'Billing Determinants'!D22","v":89975531.042652205},{"$f":"'Billing Determinants'!E22","v":91951519.832541332},{"$f":"'Billing Determinants'!F22","v":92774510.056144252},{"$f":"'Billing Determinants'!G22","v":92304315.923737437},{"$f":"'Billing Determinants'!H22","v":92381168.796519667},{"$f":"'Billing Determinants'!I22","v":95801534.501396626},{"$f":"'Billing Determinants'!J22","v":96058766.262987971},{"$f":"'Billing Determinants'!K22","v":94925036.03878656},{"$f":"'Billing Determinants'!L22","v":94112428.564483255},{"$f":"'Billing Determinants'!M22","v":93110082.726801127},{"$f":"'Billing Determinants'!N22","v":90304374.418747365},{"$f":"'Billing Determinants'!O22","v":91187123.789756104},{"$f":"'Billing Determinants'!P22","v":88239196.32236883},{"$f":"'Billing Determinants'!Q22","v":90434725.260531828},{"$f":"'Billing Determinants'!R22","v":91871177.287806451},{"$f":"'Billing Determinants'!S22","v":91175548.215561062},{"$f":"'Billing Determinants'!T22","v":90965243.089116275},{"$f":"'Billing Determinants'!U22","v":94300477.209534302},{"$f":"'Billing Determinants'!V22","v":93877662.589667767},{"$f":"'Billing Determinants'!W22","v":92948636.594125926},{"$f":"'Billing Determinants'!X22","v":92002998.648053378},{"$f":"'Billing Determinants'!Y22","v":91779097.87659061},{"$f":"'Billing Determinants'!Z22","v":89892018.658391207},{"$f":"'Billing Determinants'!AA22","v":90468492.933519125},{"$f":"'Billing Determinants'!AB22","v":87474790.046390772},{"$f":"'Billing Determinants'!AC22","v":89608271.633698404},{"$f":"'Billing Determinants'!AD22","v":91322347.46055609},{"$f":"'Billing Determinants'!AE22","v":90173078.697800636},{"$f":"'Billing Determinants'!AF22","v":90590252.571560785}]
[null,"Pumping Schedule 31/32",null,{"$f":"'Billing Determinants'!B23","v":0},{"$f":"'Billing Determinants'!C23","v":0},{"$f":"'Billing Determinants'!D23","v":4126870.3391185976},{"$f":"'Billing Determinants'!E23","v":6198627.9349720981},{"$f":"'Billing Determinants'!F23","v":11401003.206337143},{"$f":"'Billing Determinants'!G23","v":16654768.195992965},{"$f":"'Billing Determinants'!H23","v":23194216.940565091},{"$f":"'Billing Determinants'!I23","v":23410150.393289931},{"$f":"'Billing Determinants'!J23","v":17517686.192915287},{"$f":"'Billing Determinants'!K23","v":10625887.401587773},{"$f":"'Billing Determinants'!L23","v":4640598.2786523579},{"$f":"'Billing Determinants'!M23","v":3922551.11750064},{"$f":"'Billing Determinants'!N23","v":3849860.4213642292},{"$f":"'Billing Determinants'!O23","v":3481455.5076147551},{"$f":"'Billing Determinants'!P23","v":4135231.5730193537},{"$f":"'Billing Determinants'!Q23","v":6107075.1897286987},{"$f":"'Billing Determinants'!R23","v":11547177.015771193},{"$f":"'Billing Determinants'!S23","v":16741287.029873027},{"$f":"'Billing Determinants'!T23","v":22809990.112366188},{"$f":"'Billing Determinants'!U23","v":23824473.024610173},{"$f":"'Billing Determinants'!V23","v":17777504.94738479},{"$f":"'Billing Determinants'!W23","v":10941818.469224507},{"$f":"'Billing Determinants'!X23","v":4719617.5884307921},{"$f":"'Billing Determinants'!Y23","v":3931042.4256912386},{"$f":"'Billing Determinants'!Z23","v":3835841.8883984881},{"$f":"'Billing Determinants'!AA23","v":3449413.0850240532},{"$f":"'Billing Determinants'!AB23","v":4031231.0749459625},{"$f":"'Billing Determinants'!AC23","v":5835392.5187206175},{"$f":"'Billing Determinants'!AD23","v":11034909.512641182},{"$f":"'Billing Determinants'!AE23","v":16828338.673140887},{"$f":"'Billing Determinants'!AF23","v":23269468.720157292}]
[null,"Street and Area Lights",null,{"$f":"'Billing Determinants'!B24","v":0},{"$f":"'Billing Determinants'!C24","v":0},{"$f":"'Billing Determinants'!D24","v":1506535.1899971869},{"$f":"'Billing Determinants'!E24","v":1503052.4514471977},{"$f":"'Billing Determinants'!F24","v":1495752.0990312933},{"$f":"'Billing Determinants'!G24","v":1491875.9970526437},{"$f":"'Billing Determinants'!H24","v":1487548.7332422216},{"$f":"'Billing Determinants'!I24","v":1479929.0624368056},{"$f":"'Billing Determinants'!J24","v":1467615.2121774405},{"$f":"'Billing Determinants'!K24","v":1467813.8842941311},{"$f":"'Billing Determinants'!L24","v":1471889.944256285},{"$f":"'Billing Determinants'!M24","v":1471764.4241067106},{"$f":"'Billing Determinants'!N24","v":1453065.127139166},{"$f":"'Billing Determinants'!O24","v":1445805.9655334945},{"$f":"'Billing Determinants'!P24","v":1444644.490785752},{"$f":"'Billing Determinants'!Q24","v":1435571.4325181325},{"$f":"'Billing Determinants'!R24","v":1432958.8476073765},{"$f":"'Billing Determinants'!S24","v":1431250.8266553835},{"$f":"'Billing Determinants'!T24","v":1425755.8957889453},{"$f":"'Billing Determinants'!U24","v":1414507.326001172},{"$f":"'Billing Determinants'!V24","v":1407182.4312982028},{"$f":"'Billing Determinants'!W24","v":1409068.4495582664},{"$f":"'Billing Determinants'!X24","v":1405695.0799969442},{"$f":"'Billing Determinants'!Y24","v":1397747.1746419992},{"$f":"'Billing Determinants'!Z24","v":1384703.3375030346},{"$f":"'Billing Determinants'!AA24","v":1376122.3720164516},{"$f":"'Billing Determinants'!AB24","v":1364386.4228731263},{"$f":"'Billing Determinants'!AC24","v":1351535.1841968354},{"$f":"'Billing Determinants'!AD24","v":1345565.5138198223},{"$f":"'Billing Determinants'!AE24","v":1334718.336320621},{"$f":"'Billing Determinants'!AF24","v":1317951.2291091522}]
["Total Forecasted Usage",null,null,{"$f":"SUM(D5:D10)","v":0},{"$f":"SUM(E5:E10)","v":0},{"$f":"SUM(F5:F10)","v":480128380.80635941},{"$f":"SUM(G5:G10)","v":436404694.29183906},{"$f":"SUM(H5:H10)","v":431293325.17379463},431534930.65924144,498651511.09579605,481322046.68769431,429534899.00487232,456745040.34266371,500419755.59799749,574545254.32979667,556069394.25274825,487742520.80732781,494013549.0232662,{"$f":"SUM(S5:S10)","v":436480133.12081283},436310758.56825668,431846782.57496369,489258752.94737017,{"$f":"SUM(W5:W10)","v":484478637.05769122},427077341.61808646,456145296.5074234,500597828.16395235,574903958.64216101,556998732.74109817,485368746.64333618,491295963.85201627,438170111.11705291,433578650.4524737,435397650.83688885,497912240.62014133]
[null,null,null,{"$f":"D11-'Billing Determinants'!B25","v":0},{"$f":"E11-'Billing Determinants'!C25","v":0},{"$f":"F11-'Billing Determinants'!D25","v":0},{"$f":"G11-'Billing Determinants'!E25","v":0},{"$f":"H11-'Billing Determinants'!F25","v":0},{"$f":"I11-'Billing Determinants'!G25","v":0},{"$f":"J11-'Billing Determinants'!H25","v":0},{"$f":"K11-'Billing Determinants'!I25","v":0},{"$f":"L11-'Billing Determinants'!J25","v":0},{"$f":"M11-'Billing Determinants'!K25","v":0},{"$f":"N11-'Billing Determinants'!L25","v":0},{"$f":"O11-'Billing Determinants'!M25","v":0},{"$f":"P11-'Billing Determinants'!N25","v":0},{"$f":"Q11-'Billing Determinants'!O25","v":0},{"$f":"R11-'Billing Determinants'!P25","v":0},{"$f":"S11-'Billing Determinants'!Q25","v":0},{"$f":"T11-'Billing Determinants'!R25","v":0},{"$f":"U11-'Billing Determinants'!S25","v":0},{"$f":"V11-'Billing Determinants'!T25","v":0},{"$f":"W11-'Billing Determinants'!U25","v":0},{"$f":"X11-'Billing Determinants'!V25","v":0},{"$f":"Y11-'Billing Determinants'!W25","v":0},{"$f":"Z11-'Billing Determinants'!X25","v":0},{"$f":"AA11-'Billing Determinants'!Y25","v":0},{"$f":"AB11-'Billing Determinants'!Z25","v":0},{"$f":"AC11-'Billing Determinants'!AA25","v":0},{"$f":"AD11-'Billing Determinants'!AB25","v":0},{"$f":"AE11-'Billing Determinants'!AC25","v":0},{"$f":"AF11-'Billing Determinants'!AD25","v":0},{"$f":"AG11-'Billing Determinants'!AE25","v":0},{"$f":"AH11-'Billing Determinants'!AF25","v":0}]
[]
["DSM Rates"]
[null,"Residential Schedule 001",null,3.4399999999999999E-3,3.4399999999999999E-3,3.4399999999999999E-3,3.4399999999999999E-3,3.4399999999999999E-3,3.4399999999999999E-3,3.4399999999999999E-3,{"$f":"'WA Electric - Sched 91'!$D$23","v":4.3270448783934495E-3},{"$f":"'WA Electric - Sched 91'!$D$23","v":4.3270448783934495E-3},{"$f":"'WA Electric - Sched 91'!$D$23","v":4.3270448783934495E-3},{"$f":"'WA Electric - Sched 91'!$D$23","v":4.3270448783934495E-3},{"$f":"'WA Electric - Sched 91'!$D$23","v":4.3270448783934495E-3},{"$f":"'WA Electric - Sched 91'!$D$23","v":4.3270448783934495E-3},{"$f":"'WA Electric - Sched 91'!$D$23","v":4.3270448783934495E-3},{"$f":"'WA Electric - Sched 91'!$D$23","v":4.3270448783934495E-3},{"$f":"'WA Electric - Sched 91'!$D$23","v":4.3270448783934495E-3},{"$f":"'WA Electric - Sched 91'!$D$23","v":4.3270448783934495E-3},{"$f":"'WA Electric - Sched 91'!$D$23","v":4.3270448783934495E-3},{"$f":"'WA Electric - Sched 91'!$D$23","v":4.3270448783934495E-3},{"$f":"'WA Electric - Sched 91'!$D$23","v":4.3270448783934495E-3},{"$f":"'WA Electric - Sched 91'!$D$23","v":4.3270448783934495E-3},{"$f":"'WA Electric - Sched 91'!$D$23","v":4.3270448783934495E-3},{"$f":"'WA Electric - Sched 91'!$D$23","v":4.3270448783934495E-3},{"$f":"'WA Electric - Sched 91'!$D$23","v":4.3270448783934495E-3},{"$f":"'WA Electric - Sched 91'!$D$23","v":4.3270448783934495E-3},{"$f":"'WA Electric - Sched 91'!$D$23","v":4.3270448783934495E-3},{"$f":"'WA Electric - Sched 91'!$D$23","v":4.3270448783934495E-3},{"$f":"'WA Electric - Sched 91'!$D$23","v":4.3270448783934495E-3},{"$f":"'WA Electric - Sched 91'!$D$23","v":4.3270448783934495E-3},{"$f":"'WA Electric - Sched 91'!$D$23","v":4.3270448783934495E-3},{"$f":"'WA Electric - Sched 91'!$D$23","v":4.3270448783934495E-3}]
[null,"General Svc Schedule 011/012",null,4.6299999999999996E-3,4.6299999999999996E-3,4.6299999999999996E-3,4.6299999999999996E-3,4.6299999999999996E-3,4.6299999999999996E-3,4.6299999999999996E-3,{"$f":"'WA Electric - Sched 91'!$E$23","v":5.9691752617799599E-3},{"$f":"'WA Electric - Sched 91'!$E$23","v":5.9691752617799599E-3},{"$f":"'WA Electric - Sched 91'!$E$23","v":5.9691752617799599E-3},{"$f":"'WA Electric - Sched 91'!$E$23","v":5.9691752617799599E-3},{"$f":"'WA Electric - Sched 91'!$E$23","v":5.9691752617799599E-3},{"$f":"'WA Electric - Sched 91'!$E$23","v":5.9691752617799599E-3},{"$f":"'WA Electric - Sched 91'!$E$23","v":5.9691752617799599E-3},{"$f":"'WA Electric - Sched 91'!$E$23","v":5.9691752617799599E-3},{"$f":"'WA Electric - Sched 91'!$E$23","v":5.9691752617799599E-3},{"$f":"'WA Electric - Sched 91'!$E$23","v":5.9691752617799599E-3},{"$f":"'WA Electric - Sched 91'!$E$23","v":5.9691752617799599E-3},{"$f":"'WA Electric - Sched 91'!$E$23","v":5.9691752617799599E-3},{"$f":"'WA Electric - Sched 91'!$E$23","v":5.9691752617799599E-3},{"$f":"'WA Electric - Sched 91'!$E$23","v":5.9691752617799599E-3},{"$f":"'WA Electric - Sched 91'!$E$23","v":5.9691752617799599E-3},{"$f":"'WA Electric - Sched 91'!$E$23","v":5.9691752617799599E-3},{"$f":"'WA Electric - Sched 91'!$E$23","v":5.9691752617799599E-3},{"$f":"'WA Electric - Sched 91'!$E$23","v":5.9691752617799599E-3},{"$f":"'WA Electric - Sched 91'!$E$23","v":5.9691752617799599E-3},{"$f":"'WA Electric - Sched 91'!$E$23","v":5.9691752617799599E-3},{"$f":"'WA Electric - Sched 91'!$E$23","v":5.9691752617799599E-3},{"$f":"'WA Electric - Sched 91'!$E$23","v":5.9691752617799599E-3},{"$f":"'WA Electric - Sched 91'!$E$23","v":5.9691752617799599E-3},{"$f":"'WA Electric - Sched 91'!$E$23","v":5.9691752617799599E-3}]
[null,"Large Gen Svc Schedule 021/022",null,3.6600000000000001E-3,3.6600000000000001E-3,3.6600000000000001E-3,3.6600000000000001E-3,3.6600000000000001E-3,3.6600000000000001E-3,3.6600000000000001E-3,{"$f":"'WA Electric - Sched 91'!$F$23","v":4.5997107991687372E-3},{"$f":"'WA Electric - Sched 91'!$F$23","v":4.5997107991687372E-3},{"$f":"'WA Electric - Sched 91'!$F$23","v":4.5997107991687372E-3},{"$f":"'WA Electric - Sched 91'!$F$23","v":4.5997107991687372E-3},{"$f":"'WA Electric - Sched 91'!$F$23","v":4.5997107991687372E-3},{"$f":"'WA Electric - Sched 91'!$F$23","v":4.5997107991687372E-3},{"$f":"'WA Electric - Sched 91'!$F$23","v":4.5997107991687372E-3},{"$f":"'WA Electric - Sched 91'!$F$23","v":4.5997107991687372E-3},{"$f":"'WA Electric - Sched 91'!$F$23","v":4.5997107991687372E-3},{"$f":"'WA Electric - Sched 91'!$F$23","v":4.5997107991687372E-3},{"$f":"'WA Electric - Sched 91'!$F$23","v":4.5997107991687372E-3},{"$f":"'WA Electric - Sched 91'!$F$23","v":4.5997107991687372E-3},{"$f":"'WA Electric - Sched 91'!$F$23","v":4.5997107991687372E-3},{"$f":"'WA Electric - Sched 91'!$F$23","v":4.5997107991687372E-3},{"$f":"'WA Electric - Sched 91'!$F$23","v":4.5997107991687372E-3},{"$f":"'WA Electric - Sched 91'!$F$23","v":4.5997107991687372E-3},{"$f":"'WA Electric - Sched 91'!$F$23","v":4.5997107991687372E-3},{"$f":"'WA Electric - Sched 91'!$F$23","v":4.5997107991687372E-3},{"$f":"'WA Electric - Sched 91'!$F$23","v":4.5997107991687372E-3},{"$f":"'WA Electric - Sched 91'!$F$23","v":4.5997107991687372E-3},{"$f":"'WA Electric - Sched 91'!$F$23","v":4.5997107991687372E-3},{"$f":"'WA Electric - Sched 91'!$F$23","v":4.5997107991687372E-3},{"$f":"'WA Electric - Sched 91'!$F$23","v":4.5997107991687372E-3},{"$f":"'WA Electric - Sched 91'!$F$23","v":4.5997107991687372E-3}]
[null,"Extra Large Gen Schedule 25",null,2.32E-3,2.32E-3,2.32E-3,2.32E-3,2.32E-3,2.32E-3,2.32E-3,{"$f":"'WA Electric - Sched 91'!$G$23","v":2.9704289120635798E-3},{"$f":"'WA Electric - Sched 91'!$G$23","v":2.9704289120635798E-3},{"$f":"'WA Electric - Sched 91'!$G$23","v":2.9704289120635798E-3},{"$f":"'WA Electric - Sched 91'!$G$23","v":2.9704289120635798E-3},{"$f":"'WA Electric - Sched 91'!$G$23","v":2.9704289120635798E-3},{"$f":"'WA Electric - Sched 91'!$G$23","v":2.9704289120635798E-3},{"$f":"'WA Electric - Sched 91'!$G$23","v":2.9704289120635798E-3},{"$f":"'WA Electric - Sched 91'!$G$23","v":2.9704289120635798E-3},{"$f":"'WA Electric - Sched 91'!$G$23","v":2.9704289120635798E-3},{"$f":"'WA Electric - Sched 91'!$G$23","v":2.9704289120635798E-3},{"$f":"'WA Electric - Sched 91'!$G$23","v":2.9704289120635798E-3},{"$f":"'WA Electric - Sched 91'!$G$23","v":2.9704289120635798E-3},{"$f":"'WA Electric - Sched 91'!$G$23","v":2.9704289120635798E-3},{"$f":"'WA Electric - Sched 91'!$G$23","v":2.9704289120635798E-3},{"$f":"'WA Electric - Sched 91'!$G$23","v":2.9704289120635798E-3},{"$f":"'WA Electric - Sched 91'!$G$23","v":2.9704289120635798E-3},{"$f":"'WA Electric - Sched 91'!$G$23","v":2.9704289120635798E-3},{"$f":"'WA Electric - Sched 91'!$G$23","v":2.9704289120635798E-3},{"$f":"'WA Electric - Sched 91'!$G$23","v":2.9704289120635798E-3},{"$f":"'WA Electric - Sched 91'!$G$23","v":2.9704289120635798E-3},{"$f":"'WA Electric - Sched 91'!$G$23","v":2.9704289120635798E-3},{"$f":"'WA Electric - Sched 91'!$G$23","v":2.9704289120635798E-3},{"$f":"'WA Electric - Sched 91'!$G$23","v":2.9704289120635798E-3},{"$f":"'WA Electric - Sched 91'!$G$23","v":2.9704289120635798E-3}]
[null,"Pumping Schedule 31/32",null,3.4099999999999998E-3,3.4099999999999998E-3,3.4099999999999998E-3,3.4099999999999998E-3,3.4099999999999998E-3,3.4099999999999998E-3,3.4099999999999998E-3,{"$f":"'WA Electric - Sched 91'!$H$23","v":4.3272356403136446E-3},{"$f":"'WA Electric - Sched 91'!$H$23","v":4.3272356403136446E-3},{"$f":"'WA Electric - Sched 91'!$H$23","v":4.3272356403136446E-3},{"$f":"'WA Electric - Sched 91'!$H$23","v":4.3272356403136446E-3},{"$f":"'WA Electric - Sched 91'!$H$23","v":4.3272356403136446E-3},{"$f":"'WA Electric - Sched 91'!$H$23","v":4.3272356403136446E-3},{"$f":"'WA Electric - Sched 91'!$H$23","v":4.3272356403136446E-3},{"$f":"'WA Electric - Sched 91'!$H$23","v":4.3272356403136446E-3},{"$f":"'WA Electric - Sched 91'!$H$23","v":4.3272356403136446E-3},{"$f":"'WA Electric - Sched 91'!$H$23","v":4.3272356403136446E-3},{"$f":"'WA Electric - Sched 91'!$H$23","v":4.3272356403136446E-3},{"$f":"'WA Electric - Sched 91'!$H$23","v":4.3272356403136446E-3},{"$f":"'WA Electric - Sched 91'!$H$23","v":4.3272356403136446E-3},{"$f":"'WA Electric - Sched 91'!$H$23","v":4.3272356403136446E-3},{"$f":"'WA Electric - Sched 91'!$H$23","v":4.3272356403136446E-3},{"$f":"'WA Electric - Sched 91'!$H$23","v":4.3272356403136446E-3},{"$f":"'WA Electric - Sched 91'!$H$23","v":4.3272356403136446E-3},{"$f":"'WA Electric - Sched 91'!$H$23","v":4.3272356403136446E-3},{"$f":"'WA Electric - Sched 91'!$H$23","v":4.3272356403136446E-3},{"$f":"'WA Electric - Sched 91'!$H$23","v":4.3272356403136446E-3},{"$f":"'WA Electric - Sched 91'!$H$23","v":4.3272356403136446E-3},{"$f":"'WA Electric - Sched 91'!$H$23","v":4.3272356403136446E-3},{"$f":"'WA Electric - Sched 91'!$H$23","v":4.3272356403136446E-3},{"$f":"'WA Electric - Sched 91'!$H$23","v":4.3272356403136446E-3}]
[null,"Street and Area Lights",null,1.2149999999999999E-2,1.2149999999999999E-2,1.2149999999999999E-2,1.2149999999999999E-2,1.2149999999999999E-2,1.2149999999999999E-2,1.2149999999999999E-2,{"$f":"'WA Electric - Sched 91'!$I$23","v":2.0168135486489144E-2},{"$f":"'WA Electric - Sched 91'!$I$23","v":2.0168135486489144E-2},{"$f":"'WA Electric - Sched 91'!$I$23","v":2.0168135486489144E-2},{"$f":"'WA Electric - Sched 91'!$I$23","v":2.0168135486489144E-2},{"$f":"'WA Electric - Sched 91'!$I$23","v":2.0168135486489144E-2},{"$f":"'WA Electric - Sched 91'!$I$23","v":2.0168135486489144E-2},{"$f":"'WA Electric - Sched 91'!$I$23","v":2.0168135486489144E-2},{"$f":"'WA Electric - Sched 91'!$I$23","v":2.0168135486489144E-2},{"$f":"'WA Electric - Sched 91'!$I$23","v":2.0168135486489144E-2},{"$f":"'WA Electric - Sched 91'!$I$23","v":2.0168135486489144E-2},{"$f":"'WA Electric - Sched 91'!$I$23","v":2.0168135486489144E-2},{"$f":"'WA Electric - Sched 91'!$I$23","v":2.0168135486489144E-2},{"$f":"'WA Electric - Sched 91'!$I$23","v":2.0168135486489144E-2},{"$f":"'WA Electric - Sched 91'!$I$23","v":2.0168135486489144E-2},{"$f":"'WA Electric - Sched 91'!$I$23","v":2.0168135486489144E-2},{"$f":"'WA Electric - Sched 91'!$I$23","v":2.0168135486489144E-2},{"$f":"'WA Electric - Sched 91'!$I$23","v":2.0168135486489144E-2},{"$f":"'WA Electric - Sched 91'!$I$23","v":2.0168135486489144E-2},{"$f":"'WA Electric - Sched 91'!$I$23","v":2.0168135486489144E-2},{"$f":"'WA Electric - Sched 91'!$I$23","v":2.0168135486489144E-2},{"$f":"'WA Electric - Sched 91'!$I$23","v":2.0168135486489144E-2},{"$f":"'WA Electric - Sched 91'!$I$23","v":2.0168135486489144E-2},{"$f":"'WA Electric - Sched 91'!$I$23","v":2.0168135486489144E-2},{"$f":"'WA Electric - Sched 91'!$I$23","v":2.0168135486489144E-2}]
[]
[]
["Gross DSM Revenue",null,null,{"$f":"D4","v":"2018-01-18"},{"$f":"E4","v":"2018-02-18"},"2018-03-18","2018-04-18","2018-05-18","2018-06-18","2018-07-18","2018-08-18","2018-09-18","2018-10-18","2018-11-18","2018-12-18","2019-01-18","2019-02-18","2019-03-18","2019-04-18","2019-05-18","2019-06-18","2019-07-18",{"$f":"W4","v":"2019-08-18"},"2019-09-18","2019-10-18","2019-11-18","2019-12-18","2020-01-18","2020-02-18","2020-03-18","2020-04-18","2020-05-18","2020-06-18","2020-07-18"]
[null,"Residential Schedule 001",null,{"$f":"D5*D15","v":0},{"$f":"E5*E15","v":0},{"$f":"F5*F15","v":754428.02468898473},{"$f":"G5*G15","v":631516.45908445679},{"$f":"H5*H15","v":577124.35758726206},{"$f":"I5*I15","v":548754.64291926275},664969.22709734773,799888.9428980127,682109.97138966573,770333.49495098705,972234.7816749278,1244219.1544195819,1211323.6790071628,1002458.9151249551,994025.84698877018,{"$f":"S5*S15","v":801246.43498380308},740844.35143815959,694325.54385135032,{"$f":"V5*V15","v":820122.90740441252},{"$f":"W5*W15","v":811443.47559568076},682930.84209855821,772924.63864960044,976978.92574729153,1250500.1868978364,1218892.7899624596,1002717.142097534,994514.57248534216,812344.49098576629,741279.73721765017,705027.72380464827,838918.15336354298]
[null,"General Svc Schedule 011/012",null,{"$f":"D6*D16","v":0},{"$f":"E6*E16","v":0},243966.37233390624,{"$f":"G6*G16","v":217095.66784600972},215569.71635664691,217295.43446860544,257893.67842585911,312836.27833653771,275329.22334467579,301457.26188923925,325919.81195083144,370646.62785422511,359241.89279496385,314323.97625706223,325642.65649282915,{"$f":"S6*S16","v":281147.74905907409},282797.69814663578,281605.8183674629,326621.63724005409,{"$f":"W6*W16","v":316849.4630792315},275159.03741207958,303064.61101988686,328598.81553023867,372568.86363224837,360126.62110278802,312632.15063752537,324005.12440510775,283516.91216319101,281283.11535257037,286067.22970071773,335264.48727382696]
[null,"Large Gen Svc Schedule 021/022",null,{"$f":"D7*D17","v":0},0,411810.21036295418,{"$f":"G7*G17","v":388992.90660086152},407336.10304356186,419546.57862452255,485253.74433193495,567437.74470970593,509311.74293865007,557468.17827673187,556134.59716022306,581415.58269980457,553514.37598632043,493537.03951201687,533182.28583188087,{"$f":"S7*S17","v":488632.2821143574},519171.93458486215,528323.67651969299,597067.90575474198,{"$f":"W7*W17","v":571881.63072087895},506381.56206026743,558624.40677143051,559489.98578893894,581331.00570500095,551336.8820805999,487420.95261598047,525788.08668596286,488220.32794741163,512592.03403966763,534496.88958251325,610339.09597870684]
[null,"Extra Large Gen Schedule 25",null,{"$f":"D8*D18","v":0},0,208743.2320189531,{"$f":"G8*G18","v":213327.52601149588},215236.86333025468,214146.01294307085,214324.31160792563,284571.64790300507,285335.73656473705,281968.07152828889,279554.27879245934,276576.88173632178,268242.72465926193,270864.86891301221,262108.25993321868,{"$f":"S8*S18","v":268629.92256841029},272896.8012010192,270830.4844927495,270205.78806480271,{"$f":"W8*W18","v":280112.86392459337},278856.92315329867,276097.31747608253,273288.36718072422,272623.28585573786,267017.85118664399,268730.22704054485,259837.64543049061,266175.00082078448,271266.54121435183,267852.72005373152,269091.9053897062]
[null,"Pumping Schedule 31/32",null,{"$f":"D9*D19","v":0},0,14072.627856394418,{"$f":"G9*G19","v":21137.321258254855},38877.420933609654,56792.759548336006,79092.279767326952,101301.23712694667,75803.156029813268,45980.718674110358,20080.962263762634,16973.802996600883,16659.253225560198,15065.078352716799,17894.121443719603,{"$f":"S9*S19","v":26426.753419069239},49967.355927655663,72443.493900387126,98704.2021694328,{"$f":"W9*W19","v":103094.10878378415},76927.453004175608,47347.826849870369,20422.897437308857,17010.54688803613,16598.591730085933,14926.423239680324,17444.086781846054,25251.118482227463,47750.653730736994,72820.186873683677,100692.47437702816]
[null,"Street and Area Lights",null,{"$f":"D10*D20","v":0},0,18304.402558465819,18262.087285083449,18173.388003230211,18126.29336418962,18073.717108892994,29847.409841618348,29599.062441227132,{"$f":"M10*M20","v":29603.069287393937},29685.275816961708,29682.744309578808,29305.614354835274,29159.210600053771,{"$f":"R10*R20","v":29135.785819977165},{"$f":"S10*S20","v":28952.799151559004},28900.108185108922,28865.66058713536,28754.838076932145,{"$f":"W10*W20","v":28527.975397423106},28380.245928629356,28418.283400428314,28350.248826069565,28189.954394037242,27926.884519354906,27753.822444816611,27517.130232431482,27257.944709638839,27137.547588665559,26918.780243215668,26580.618953258276]
[null,"Total",null,{"$f":"SUM(D24:D29)","v":0},0,1651324.8698196586,1490331.9680861621,1472317.8492545653,1474661.7218679872,1719606.9583392874,2095883.2608158265,1857488.8927087688,1986810.7946067511,2183609.7076591658,2519514.7940161135,{"$f":"SUM(P24:P29)","v":2438287.5400281046},2125409.0887598172,2161988.9565103957,{"$f":"SUM(S24:S29)","v":1895035.9412962731},1894578.2494834415,1876394.6777187784,2141477.2787103765,{"$f":"SUM(W24:W29)","v":2111909.5175015917},1848636.0636570088,1986477.0841672991,2187129.2405105722,2522223.8433728972,2441899.6205819324,2114180.7180760815,2149106.6460211808,1902765.7951090198,1881309.6291436425,1893183.53025851,2180886.735336069,null,{"$f":"SUM(K30:V30)-'WA Electric - Sched 91'!D39","v":0}]
[]
["Net DSM Revenue",null,{"$f":"'Rev Conv Factor'!E22","v":0.95332300000000003},{"$f":"D4","v":"2018-01-18"},{"$f":"E4","v":"2018-02-18"},"2018-03-18","2018-04-18","2018-05-18","2018-06-18","2018-07-18","2018-08-18","2018-09-18","2018-10-18","2018-11-18","2018-12-18","2019-01-18","2019-02-18","2019-03-18","2019-04-18","2019-05-18","2019-06-18","2019-07-18",{"$f":"W4","v":"2019-08-18"},"2019-09-18","2019-10-18","2019-11-18","2019-12-18","2020-01-18","2020-02-18","2020-03-18","2020-04-18","2020-05-18","2020-06-18","2020-07-18"]
[null,"Residential Schedule 001",null,{"$f":"D24*$C$32","v":0},{"$f":"E24*$C$32","v":0},{"$f":"F24*$C$32","v":719213.58778057701},{"$f":"G24*$C$32","v":602039.16532377165},{"$f":"H24*$C$32","v":550185.92394816142},{"$f":"I24*$C$32","v":523140.42245172034},633930.45848412486,762552.52671036217,650271.12425511028,734376.63840715983,926853.77877068717,1186142.736948739,1154782.7236421455,955667.14034366759,947627.70252887544,{"$f":"S24*$C$32","v":763846.65513806418},706263.95964608062,661916.51044100081,{"$f":"V24*$C$32","v":781842.03045549674},{"$f":"W24*$C$32","v":773567.72848530125},651053.67918192386,736846.83529135305,931376.48043018521,1192130.5896740062,1161998.531205382,955913.31405584747,948093.61578544392,774426.68718002376,706679.02292354195,672119.14474061877,799759.97071899287]
[null,"General Svc Schedule 011/012",null,{"$f":"D25*$C$32","v":0},{"$f":"E25*$C$32","v":0},232578.75397247649,{"$f":"G25*$C$32","v":206962.29335796152},205507.56870626772,207152.73547391436,245855.97519797529,298234.01937262312,262477.68118661636,287386.14127603523,310706.85288840247,353345.95520587347,342473.55896497332,299652.27601731132,310442.63421571336,{"$f":"S25*$C$32","v":268024.61557624373},269597.54999024526,268461.30358352483,311375.91907860007,{"$f":"W25*$C$32","v":302059.88069108222},262315.43902279594,288918.46417131159,313260.80861773371,355178.46678448591,343316.99080957321,298039.41974221758,308881.53721325053,270283.19325414975,268153.66337725846,272714.46961997735,319615.34680134658]
[null,"Large Gen Svc Schedule 021/022",null,{"$f":"D26*$C$32","v":0},0,392588.14517384261,{"$f":"G26*$C$32","v":370835.88469945313},388322.87576179754,399963.40297406574,462603.55530775327,540951.45309989096,485538.5987135027,531447.23611930886,530175.90256857534,554276.84754612576,527677.98545840697,470500.21111871448,508294.93627610616,{"$f":"S26*$C$32","v":465824.39308210555},494938.54619424453,503663.11227078328,569198.56711782794,{"$f":"W26*$C$32","v":545187.91184372047},482745.18988798035,532549.49533656042,533374.67172226869,554196.21835170861,525602.13043572381,464669.60481072438,501245.87616372219,465431.66769981029,488665.77566679806,509548.17826747027,581850.29799570877]
[null,"Extra Large Gen Schedule 25",null,{"$f":"D27*$C$32","v":0},0,198999.72417800443,{"$f":"G27*$C$32","v":203370.03707985728},205190.2522605884,204150.31949692714,204320.29571500249,271288.6970938365,272017.12038910482,268806.64785356296,266505.52372126374,263667.1026275155,255721.95900034157,258221.70942675954,249873.83268431583,{"$f":"S27*$C$32","v":256091.08367268462},260158.79721135923,258188.92996808144,257593.39249530193,{"$f":"W27*$C$32","v":267038.03577518516},265840.71855127218,263209.92298825143,260532.08606582956,259898.0487418496,254554.25894680503,256186.70623297335,247709.20365473159,253750.75030747274,258604.63287008955,255350.15863978351,256531.5025218309]
[null,"Pumping Schedule 31/32",null,{"$f":"D28*$C$32","v":0},0,13415.759805941496,{"$f":"G28*$C$32","v":20150.694513883293},37062.739556691558,54141.843910898329,75400.489424627434,96572.799281572181,72264.892115809678,43834.476668558913,19143.643188176986,16181.516794128545,15881.649262750725,14361.885690447038,17058.877537091103,{"$f":"S28*$C$32","v":25193.231849727345},47635.02965502048,69062.048935598752,94096.986124770192,{"$f":"W28*$C$32","v":98281.985068083464},73336.710280299711,45137.772335998969,19469.617853627591,16216.545590943268,15823.819263900712,14229.702582121765,16629.849143129824,24072.472024832532,45521.796466547385,69421.159010980744,95992.451750531618]
[null,"Street and Area Lights",null,{"$f":"D29*$C$32","v":0},0,17450.007960244311,{"$f":"G29*$C$32","v":17409.667836877608},{"$f":"H29*$C$32","v":17325.108771403437},17280.212368829343,17230.090215401196,28454.222292441129,28217.467003657974,28221.286822266251,28299.656197653389,28297.242853440599,27937.716193594628,27798.146126875061,27775.814745258092,{"$f":"S29*$C$32","v":27601.369345561685},27551.137835352594,27518.298147909645,27412.648500015184,{"$f":"W29*$C$32","v":27196.375089797588},27055.541189418724,27091.803186146524,27026.944261615117,26874.131892786765,26623.341330644977,26458.357274559909,26232.713144572277,25985.62562442703,25870.848279869417,25662.29233780309,25339.915402377039]
[null,"Total",null,{"$f":"SUM(D33:D38)","v":0},{"$f":"SUM(E33:E38)","v":0},{"$f":"SUM(F33:F38)","v":1574245.9788710864},{"$f":"SUM(G33:G38)","v":1420767.7428118042},1403594.46900491,1405828.9366763553,1639340.8643448846,1998053.7178507261,1770786.8836638019,1894072.4271468923,2081685.3573347591,2401911.4019758226,2324475.5925222123,2026201.3687237748,2061073.7979873598,{"$f":"SUM(S33:S38)","v":1806581.3486643871},1806145.0205323028,1788810.2033468985,2041519.5437720122,{"$f":"SUM(W33:W38)","v":2013331.91695317},1762347.2781136907,1893754.2933096217,2085040.6089512599,2404494.0010357802,2327919.0719920299,2015497.1046984443,2048792.7951048503,1813950.3960907161,1793495.7395841046,1804815.4026166338,2079089.4851907878,null,{"$f":"SUM(K39:V39)-'WA Electric - Sched 91'!D42","v":0}]

{"sheet":"DSM Balance","index":2,"n_rows":36,"n_cols":34,"rows_kept":36,"cut":false,"hidden":false,"merged":[]}
[null,null,null,null,null,null,null,null,2018,null,null,null,null,null,null,null,null,null,null,null,2019,null,null,null,null,null,null,null,null,null,null,null,2020]
[null,null,"End January","End February","End March","End April","End May","End June","End July","End August","End September","End October ","End November","End December","End January","End February","End March","End April","End May","End June","End July","End August","End September","End October ","End November","End December","End January","End February","End March","End April","End May","End June","End July"]
["Expected elec tariff rider revenue",null,null,null,null,{"$f":"-'Revenue By Month'!G39","v":-1420767.7428118042},{"$f":"-'Revenue By Month'!H39","v":-1403594.46900491},{"$f":"-'Revenue By Month'!I39","v":-1405828.9366763553},{"$f":"-'Revenue By Month'!J39","v":-1639340.8643448846},{"$f":"-'Revenue By Month'!K39","v":-1998053.7178507261},{"$f":"-'Revenue By Month'!L39","v":-1770786.8836638019},{"$f":"-'Revenue By Month'!M39","v":-1894072.4271468923},{"$f":"-'Revenue By Month'!N39","v":-2081685.3573347591},{"$f":"-'Revenue By Month'!O39","v":-2401911.4019758226},{"$f":"-'Revenue By Month'!P39","v":-2324475.5925222123},{"$f":"-'Revenue By Month'!Q39","v":-2026201.3687237748},{"$f":"-'Revenue By Month'!R39","v":-2061073.7979873598},{"$f":"-'Revenue By Month'!S39","v":-1806581.3486643871},{"$f":"-'Revenue By Month'!T39","v":-1806145.0205323028},{"$f":"-'Revenue By Month'!U39","v":-1788810.2033468985},{"$f":"-'Revenue By Month'!V39","v":-2041519.5437720122},{"$f":"-'Revenue By Month'!W39","v":-2013331.91695317},{"$f":"-'Revenue By Month'!X39","v":-1762347.2781136907},{"$f":"-'Revenue By Month'!Y39","v":-1893754.2933096217},{"$f":"-'Revenue By Month'!Z39","v":-2085040.6089512599},{"$f":"-'Revenue By Month'!AA39","v":-2404494.0010357802},{"$f":"-'Revenue By Month'!AB39","v":-2327919.0719920299},{"$f":"-'Revenue By Month'!AC39","v":-2015497.1046984443},{"$f":"-'Revenue By Month'!AD39","v":-2048792.7951048503},{"$f":"-'Revenue By Month'!AE39","v":-1813950.3960907161},{"$f":"-'Revenue By Month'!AF39","v":-1793495.7395841046},{"$f":"-'Revenue By Month'!AG39","v":-1804815.4026166338},{"$f":"-'Revenue By Month'!AH39","v":-2079089.4851907878}]
["Expected DSM expenditures",null,null,null,null,1299879.6599999997,1336210.2566666664,1752847.6266666665,1087268.146666667,915434.90666666673,1595695.9866666668,1306214.8766666667,1880984.1066666667,1578301.3066666662,1505750.6666666667,1246539.6666666667,1785571.6666666667,1329046.3266666664,1336210.2566666664,1752847.6266666665,1087268.146666667,915434.90666666673,1595695.9866666668,1306214.8766666667,1880984.1066666667,1578301.3066666662,1505750.6666666667,1246539.6666666667,1785571.6666666667,1329046.3266666664,1336210.2566666664,1752847.6266666665,1087268.146666667,915434.90666666673]
["Net change in balance",null,null,null,{"$f":"E3+E4","v":0},-120888.08281180449,-67384.212338243611,347018.68999031116,-552072.71767821768,-1082618.8111840594,-175090.89699713513,-587857.55048022559,-200701.2506680924,-823610.09530915646,-818724.92585554556,-779661.70205710805,-275502.13132069306,-477535.0219977207,-469934.76386563643,-35962.576680232072,-954251.39710534527,{"$f":"V3+V4","v":-1097897.0102865032},-166651.29144702386,-587539.41664295504,-204056.50228459318,-826192.694369114,-822168.40532536316,-768957.43803177751,-263221.12843818357,-484904.0694240497,-457285.48291743826,-51967.775949967327,-991821.33852412086]
["Accounting Adjustment"]
["Elec Tariff rider balance",null,null,null,13797440,{"$f":"F5+F6+E7","v":13676551.917188196},13609167.704849951,13956186.394840263,13404113.677162046,12321494.865977986,12146403.968980851,11558546.418500625,11357845.167832533,10534235.072523376,9715510.1466678306,8935848.4446107224,8660346.3132900298,8182811.2912923088,7712876.5274266722,7676913.9507464403,{"$f":"T7+U5+U6","v":6722662.5536410948},{"$f":"U7+V5+V6","v":5624765.5433545914},5458114.2519075675,4870574.835264612,4666518.332980019,3840325.638610905,3018157.2332855416,2249199.7952537639,1985978.6668155803,1501074.5973915306,1043789.1144740924,991821.33852412505,4.1909515857696533E-9]
[]
[]
[]
[]
[]
["Tariff rider balance annual interest rate",0,"applied to E  \"shareholder owes customer\" balances."]
["2015 Washington electric DSM budget ",null,"CY 2016 expected expenditures"]
["2016 Washington electric DSM budget ",{"$f":"B14*1.02","v":0},"CY 2017 expected expenditures + 2% increase"]
[]
[]
[]
["End of July Balance",{"$f":"I7","v":13404113.677162046},"Underfunded \"Surcharge\""]
["Aug 2018 - July 2020 Expenditure Budget",{"$f":"SUM(J4:AG4)","v":34639731.079999998}]
["Aug 2018 - July 2020 Forecasted Revenue",{"$f":"SUM(J3:AG3)","v":-48043844.757162035}]
[null,{"$f":"SUM(C6:U6)","v":0}]
["Total Projected DSM Balance July 2019",{"$f":"B19+B20+B22+B21","v":0}]
[]
[null,"Present","Proposed"]
["Gross Annual Revenue Recovered",{"$f":"'WA Electric - Sched 91'!C11","v":19829602.176229011},{"$f":"'WA Electric - Sched 91'!C19","v":25176479.182313815},{"$f":"C26-B26","v":5346877.0060848035}]
["Revenue Conversion Factor",{"$f":"'Rev Conv Factor'!E22","v":0.95332300000000003},{"$f":"'Rev Conv Factor'!E22","v":0.95332300000000003}]
[]
["Net Annual Revenue to be Recovered",{"$f":"B26*B27","v":18904015.83544917},{"$f":"C26*C27","v":24001316.663520955},{"$f":"C29-B29","v":5097300.8280717842}]
[]
[]
[]
["June 2017 - May 2018"]
["Annual DSM Expense",{"$f":"SUM(H4:S4)","v":17319865.539999999}]
["Annual DSM Revenue",{"$f":"SUM(H3:S3)","v":-23216156.717423283}]
[null,{"$f":"B34+B35","v":-5896291.1774232835}]

{"sheet":"Rev Conv Factor","index":3,"n_rows":29,"n_cols":5,"rows_kept":29,"cut":false,"hidden":false,"merged":[[31,0,31,4],[32,0,32,4],[33,0,33,4]]}
["AVISTA UTILITIES"]
["Revenue Conversion Factor"]
["Washington - Electric System"]
["TWELVE MONTHS ENDED DECEMBER 31, 2016"]
[]
["Line "]
["No.",null,"Description",null,"Factor"]
[]
[1,null,"Revenues",null,1]
[]
[null,null,"Expense:"]
[2,null,"  Uncollectibles",null,6.1824999999999996E-3]
[]
[3,null,"  Commission Fees",null,2E-3]
[]
[4,null,"  Washington Excise Tax",null,3.8494500000000001E-2]
[]
[5,null,"  Franchise Fees",null,0]
[]
[6,null,"    Total Expense",null,{"$f":"E12+E14+E16+E18","v":4.6676999999999996E-2}]
[]
[7,null,"Net Operating Income Before FIT",null,{"$f":"E9-E20","v":0.95332300000000003}]
[]
[8,null,"  Federal Income Tax @ 21%",null,0.20019799999999999]
[]
[9,null,"REVENUE CONVERSION FACTOR",null,{"$f":"E22-E24","v":0.75312500000000004}]
[]
[]
["Source:  UE-170485"]

{"sheet":"Billing Determinants","index":4,"n_rows":25,"n_cols":35,"rows_kept":25,"cut":false,"hidden":false,"merged":[]}
[]
[]
[]
["Forecasted Loads"]
[]
[]
[null,null,null,"2018-03-01","2018-04-01","2018-05-01","2018-06-01","2018-07-01","2018-08-01","2018-09-01","2018-10-01","2018-11-01","2018-12-01","2019-01-01","2019-02-01","2019-03-01","2019-04-01","2019-05-01","2019-06-01","2019-07-01","2019-08-01","2019-09-01","2019-10-01","2019-11-01","2019-12-01","2020-01-01","2020-02-01","2020-03-01","2020-04-01","2020-05-01","2020-06-01","2020-07-01"]
["WA001",null,null,219310472.29330951,183580366.01292348,167768708.60094827,159521698.52304149,193305007.87713596,184858018.66584671,157638755.90837884,178027618.52495447,224687935.76180804,287544776.95214874,279942481.0812003,231672872.20213655,229723951.31659308,185171741.33892757,171212541.6441766,160461830.96421695,189534181.05266076,187528324.38774115,157828462.90979946,178626443.76745471,225784329.30652326,288996352.48574626,281691737.48320621,231732549.64478761,229836898.02972108,187736553.19409919,171313161.30302614,162935154.04129845,193877848.95705023]
["WA011",null,null,47237166.200034037,42361735.286451504,42363408.932623833,42933370.186783999,51248487.048004918,48217692.674264967,42249192.925825603,46004251.16602128,49193115.097261235,55297443.955217697,53409191.29571186,46846350.42231518,48826142.232435957,42465566.543324992,43039603.490898907,43117912.20243258,50263696.868066229,48779207.688474357,42174871.61218603,46179610.238183156,49539333.089454263,55502812.955713362,53458069.84077955,46516611.724364348,48483411.474414334,42738276.215263464,42739660.581338726,43725513.515599832,51524967.922965348]
["WA012",null,null,5455354.8224079255,4527177.8552352637,4195925.0536929928,3998689.0936923428,4452091.4457011605,4190934.0818628911,3875977.013073937,4498079.3350515114,5407361.1255871449,6795996.3609745465,6773644.1950056348,5811506.3958029961,5727902.8762555085,4634365.4789822372,4336740.0983673539,4058758.9485314605,4454354.2723283526,4301737.1964894626,3921787.5316484189,4591995.1727652634,5509949.4528467553,6912654.3899633558,6872981.8220260711,5857818.0631606029,5796302.2541606324,4758555.3786288807,4382948.9948280919,4198565.9686093107,4640996.8159982422]
["WA021",null,null,109711137.74920973,103836068.18703149,108905097.03081727,112259201.13654883,129827343.37790658,120761415.06238407,108418244.94591674,118644704.31784432,118116610.40885386,123116804.00785564,117070383.69910002,104449333.77740186,113035116.22385801,103798624.86924154,110461098.40229425,112504441.10976514,127129489.75574237,121719263.3155016,107803450.06181559,118903295.27891469,118854302.40233091,123122899.99002755,116625417.50706366,103160207.81546475,111466267.7601974,103707903.97528793,109064057.00170536,113828097.37856972,129971363.72522411]
["WA022",null,null,2805313.1696302043,2446146.7312366767,2388920.1941996268,2371011.6023917468,2755646.8767204601,2602372.2462122962,2308660.5435964721,2551649.6741236029,2789816.417095297,3285834.78519161,3266394.014479694,2848072.7467668299,2881363.9879496396,2432463.0075578862,2409461.7813345189,2355753.2779281102,2676041.9013010464,2610646.9093390168,2286419.5342861945,2544428.5371968541,2781602.5963160349,3261351.343786641,3237962.2037298828,2807531.004999252,2842676.7893129052,2433623.0171575872,2376000.0845583165,2374184.2255493519,2719390.6780761471]
["WA025",null,null,89975531.042652205,91951519.832541332,92774510.056144252,92304315.923737437,92381168.796519667,95801534.501396626,96058766.262987971,94925036.03878656,94112428.564483255,93110082.726801127,90304374.418747365,91187123.789756104,88239196.32236883,90434725.260531828,91871177.287806451,91175548.215561062,90965243.089116275,94300477.209534302,93877662.589667767,92948636.594125926,92002998.648053378,91779097.87659061,89892018.658391207,90468492.933519125,87474790.046390772,89608271.633698404,91322347.46055609,90173078.697800636,90590252.571560785]
["WA031",null,null,3865374.1968885837,5760036.279624234,10657870.619246706,15558530.172254976,21449848.398869723,21784015.114309497,16433774.700833611,10021886.882187732,4349506.1550265895,3647299.3052340746,3563751.0506078652,3232540.6089435611,3868520.5101655656,5673413.6222993005,10802345.921573803,15652263.266637361,21092583.497824397,22181534.50506584,16693800.678156838,10331007.089528445,4426771.7514813067,3659252.067608329,3552192.2667417075,3202790.0571921198,3770137.890070938,5416403.3301703706,10311918.52443352,15753083.335908832,21539821.973512005]
["WA032",null,null,261496.14223001397,438591.65534786426,743132.5870904359,1096238.0237379891,1744368.5416953689,1626135.2789804337,1083911.4920816745,604000.51940004248,291092.12362576812,275251.81226656557,286109.3707563639,248914.89867119401,266711.06285378797,433661.5674293979,744831.0941973899,1089023.7632356659,1717406.6145417928,1642938.5195443342,1083704.2692279499,610811.3796960623,292845.83694948512,271790.35808290949,283649.62165678066,246623.02783193329,261093.18487502445,418989.18855024688,722990.98820766259,1075255.3372320568,1729646.7466452878]
["WA04X",null,null,1506535.1899971869,1503052.4514471977,1495752.0990312933,1491875.9970526437,1487548.7332422216,1479929.0624368056,1467615.2121774405,1467813.8842941311,1471889.944256285,1471764.4241067106,1453065.127139166,1445805.9655334945,1444644.490785752,1435571.4325181325,1432958.8476073765,1431250.8266553835,1425755.8957889453,1414507.326001172,1407182.4312982028,1409068.4495582664,1405695.0799969442,1397747.1746419992,1384703.3375030346,1376122.3720164516,1364386.4228731263,1351535.1841968354,1345565.5138198223,1334718.336320621,1317951.2291091522]
[null,null,null,{"$f":"SUM(D8:D16)","v":480128380.80635941},436404694.29183912,431293325.17379469,431534930.65924144,498651511.09579605,481322046.68769431,429534899.00487232,456745040.34266371,500419755.59799761,574545254.32979679,556069394.25274837,487742520.80732781,{"$f":"SUM(P8:P16)","v":494013549.02326626},436480133.12081295,436310758.56825668,431846782.57496375,489258752.94737011,{"$f":"SUM(U8:U16)","v":484478637.05769122},427077341.61808646,456145296.5074234,500597828.16395223,574903958.64216101,556998732.74109817,485368746.64333618,491295963.85201621,438170111.11705291,433578650.4524737,435397650.83688879,497912240.62014133]
[null,null,null,null,null,null,null,null,null,null,null,null,null,null,null,null,null,null,null,null,null,null,null,null,null,null,null,null,null,null,null,null,null,2017,"2017-2018"]
["WA001",null,null,{"$f":"D8","v":219310472.29330951},183580366.01292348,167768708.60094827,159521698.52304149,193305007.87713596,184858018.66584671,157638755.90837884,178027618.52495447,224687935.76180804,287544776.95214874,279942481.0812003,231672872.20213655,229723951.31659308,185171741.33892757,171212541.6441766,160461830.96421695,189534181.05266076,{"$f":"U8","v":187528324.38774115},157828462.90979946,178626443.76745471,225784329.30652326,288996352.48574626,281691737.48320621,231732549.64478761,229836898.02972108,187736553.19409919,171313161.30302614,162935154.04129845,193877848.95705023,null,{"$f":"SUM(B19:M19)","v":1956243359.1204956},{"$f":"SUM(B19:T19)","v":3403962958.7204075}]
["WA011/12",null,null,{"$f":"D9+D10","v":52692521.022441961},46888913.141686767,46559333.98631683,46932059.280476339,55700578.493706077,52408626.756127857,46125169.938899539,50502330.501072794,54600476.222848378,62093440.31619224,60182835.490717493,52657856.818118177,54554045.108691469,47099932.022307232,47376343.589266263,47176671.150964044,54718051.140394583,{"$f":"U9+U10","v":53080944.884963818},46096659.143834449,50771605.410948418,55049282.542301022,62415467.34567672,60331051.662805624,52374429.787524953,54279713.728574969,47496831.593892343,47122609.576166816,47924079.484209143,56165964.738963589,null,{"$f":"SUM(B20:M20)","v":514503449.6597687},{"$f":"SUM(B20:T20)","v":878269184.98022807}]
["WA021/22",null,null,{"$f":"D11+D12","v":112516450.91883993},106282214.91826817,111294017.22501689,114630212.73894058,132582990.25462703,123363787.30859637,110726905.48951322,121196353.99196792,120906426.82594916,126402638.79304725,120336777.71357971,107297406.5241687,115916480.21180765,106231087.87679942,112870560.18362877,114860194.38769326,129805531.65704341,{"$f":"U11+U12","v":124329910.22484061},110089869.59610179,121447723.81611155,121635904.99864694,126384251.33381419,119863379.71079354,105967738.820464,114308944.5495103,106141526.99244551,111440057.08626369,116202281.60411908,132690754.40330026,null,1179901998.4647665,1987220037.0194874]
["WA025",null,null,{"$f":"D13","v":89975531.042652205},91951519.832541332,92774510.056144252,92304315.923737437,92381168.796519667,95801534.501396626,96058766.262987971,94925036.03878656,94112428.564483255,93110082.726801127,90304374.418747365,91187123.789756104,88239196.32236883,90434725.260531828,91871177.287806451,91175548.215561062,90965243.089116275,{"$f":"U13","v":94300477.209534302},93877662.589667767,92948636.594125926,92002998.648053378,91779097.87659061,89892018.658391207,90468492.933519125,87474790.046390772,89608271.633698404,91322347.46055609,90173078.697800636,90590252.571560785,null,933394893.74605048,1567572282.1299386]
["WA031/32",null,null,{"$f":"D14+D15","v":4126870.3391185976},6198627.9349720981,11401003.206337143,16654768.195992965,23194216.940565091,23410150.393289931,17517686.192915287,10625887.401587773,4640598.2786523579,3922551.11750064,3849860.4213642292,3481455.5076147551,4135231.5730193537,6107075.1897286987,11547177.015771193,16741287.029873027,22809990.112366188,{"$f":"U14+U15","v":23824473.024610173},17777504.94738479,10941818.469224507,4719617.5884307921,3931042.4256912386,3835841.8883984881,3449413.0850240532,4031231.0749459625,5835392.5187206175,11034909.512641182,16828338.673140887,23269468.720157292,null,121692360.00093189,190364436.85066932]
["WA04X",null,null,{"$f":"D16","v":1506535.1899971869},1503052.4514471977,1495752.0990312933,1491875.9970526437,1487548.7332422216,1479929.0624368056,1467615.2121774405,1467813.8842941311,1471889.944256285,1471764.4241067106,1453065.127139166,1445805.9655334945,1444644.490785752,1435571.4325181325,1432958.8476073765,1431250.8266553835,1425755.8957889453,{"$f":"U16","v":1414507.326001172},1407182.4312982028,1409068.4495582664,1405695.0799969442,1397747.1746419992,1384703.3375030346,1376122.3720164516,1364386.4228731263,1351535.1841968354,1345565.5138198223,1334718.336320621,1317951.2291091522,null,14843776.998041917,24912829.584070168]
["Total",null,null,{"$f":"SUM(D19:D24)","v":480128380.80635941},436404694.29183906,431293325.17379463,431534930.65924144,498651511.09579605,481322046.68769431,429534899.00487232,456745040.34266371,500419755.59799749,574545254.32979667,556069394.25274825,487742520.80732781,{"$f":"SUM(P19:P24)","v":494013549.0232662},436480133.12081283,436310758.56825668,431846782.57496369,489258752.94737017,{"$f":"SUM(U19:U24)","v":484478637.05769122},427077341.61808646,456145296.5074234,500597828.16395235,574903958.64216101,556998732.74109817,485368746.64333618,491295963.85201627,438170111.11705291,433578650.4524737,435397650.83688885,497912240.62014133,null,4720579837.9900551,8052301729.2848005]

{"sheet":"Base Revenue","index":5,"n_rows":54,"n_cols":22,"rows_kept":54,"cut":false,"hidden":false,"merged":[[4,0,4,13],[0,0,0,13],[0,16,2,17],[1,0,1,13],[2,0,2,13],[3,0,3,13]]}
["AVISTA UTILITIES",null,null,null,null,null,null,null,null,null,null,null,null,null,null,null,"This worksheet pulls data from 'Pres & Prop Rev' tab."]
["WASHINGTON ELECTRIC"]
["PROPOSED INCREASE BY SERVICE SCHEDULE"]
["12 MONTHS ENDED DECEMBER 31, 2016"]
["(000s of Dollars)"]
["Source:  UE-170485 Compliance Filing, Attachment 1, Page 1"]
[]
[null,null,null,"Base Tariff",null,"Base Tariff","Base","Total Billed",null,"Percent",null,null,null,"Percent ",null,null,null,"Percent ","Total Billed"]
[null,null,null,"Revenue","Total","Revenue","Tariff","Revenue","Total ","Increase","Sch. 98","Sch. 93","Proposed","Increase",null,null,null,"Increase","Revenue"]
[null,"Type of","Schedule","Under Present","General","Under Proposed","Percent","at Present","General","on Billed","REC Revenue","ERM","General","on Billed",null,null,null,"on Base","at Proposed"]
["No.","Service","Number","Rates(1)","Increase","Rates(1)","Increase","Rates (2)","Increase","Revenue","Decrease","Increase","Increase","Revenue",null,null,null,"Revenue","Rates (2)"]
[null,"(a)","(b)","(c)","(d)","(e)","(f)","(g)","(h)","(k)","(j)","(k)","(j)","(k)",null,{"$f":"\"col (m) source\"","v":"col (m) source"}]
[null,null,null,{"$f":"IF(Base1_Billing2<>1,\"ERROR\",\"\")","v":""}]
[1,"Residential",1,209488.93071000002,4904.4568899999858,214393.38759999999,2.3411532405926163E-2,227177.78877000001,4904.4568899999858,{"$f":"(I14)/H14","v":2.1588628521097941E-2},{"$f":"'[3]Adder Schedule'!H11/1000","v":{"$error":"#DIV/0!"}},{"$f":"('[3]Pres & Prop Rev'!D23*(0))/1000","v":0},{"$f":"E14+L14","v":4904.4568899999858},{"$f":"(M14)/H14","v":2.1588628521097941E-2},null,"from Pres & Prop Rev tab",null,{"$f":"(E14+L14)/D14","v":2.3411532405926163E-2},{"$f":"E14+H14+L14","v":232082.24565999999},null,{"$f":"#REF!/H14","v":{"$error":"#REF!"}},{"$f":"#REF!/H14","v":{"$error":"#REF!"}}]
[]
[2,"General Service","11/12",73765.851869999999,1291.4264699999987,75057.478340000001,1.7507104402127997E-2,77450.850290000002,1291.4264699999987,{"$f":"(I16)/H16","v":1.6674141925679287E-2},{"$f":"'[3]Adder Schedule'!H13/1000","v":{"$error":"#DIV/0!"}},{"$f":"('[3]Pres & Prop Rev'!E23*(0))/1000","v":0},{"$f":"E16+L16","v":1291.4264699999987},{"$f":"(M16)/H16","v":1.6674141925679287E-2},null,"from below",null,{"$f":"(E16+L16)/D16","v":1.7507104402127997E-2},{"$f":"E16+H16+L16","v":78742.276760000008},null,{"$f":"#REF!/H16","v":{"$error":"#REF!"}},{"$f":"#REF!/H16","v":{"$error":"#REF!"}}]
[]
[3,"Large General Service","21/22",126766.29444000001,2774.5581999999731,129540.75263999998,2.1887191798551819E-2,133183.52299999999,2774.5581999999731,2.0832593533360529E-2,{"$f":"'[3]Adder Schedule'!H15/1000","v":{"$error":"#DIV/0!"}},{"$f":"('[3]Pres & Prop Rev'!F23*(0))/1000","v":0},{"$f":"E18+L18","v":2774.5581999999731},{"$f":"(M18)/H18","v":2.0832593533360529E-2},null,"from below",null,{"$f":"(E18+L18)/D18","v":2.1887191798551819E-2},{"$f":"E18+H18+L18","v":135958.08119999996},null,{"$f":"#REF!/H18","v":{"$error":"#REF!"}},{"$f":"#REF!/H18","v":{"$error":"#REF!"}}]
[]
[4,"Extra Large General Service",25,64348.301520000001,1405.0125,65753.014020000002,2.1934492392364235E-2,67050.377429999993,1405.0125,2.095458003151169E-2,{"$f":"'[3]Adder Schedule'!H17/1000","v":{"$error":"#DIV/0!"}},{"$f":"('[3]Pres & Prop Rev'!G23*(0))/1000","v":0},{"$f":"E20+L20","v":1405.0125},{"$f":"(M20)/H20","v":2.095458003151169E-2},null,"from Pres & Prop Rev tab",null,{"$f":"(E20+L20)/D20","v":2.1834492392364235E-2},{"$f":"E20+H20+L20","v":68455.38992999999},null,{"$f":"#REF!/H20","v":{"$error":"#REF!"}},{"$f":"#REF!/H20","v":{"$error":"#REF!"}}]
[]
[5,"Pumping Service","30/31/32",10894.097790000002,238.12927999999934,11132.227070000001,2.1858559064761186E-2,11443.438270000001,238.12927999999934,2.080924232573322E-2,{"$f":"'[3]Adder Schedule'!H19/1000","v":{"$error":"#DIV/0!"}},{"$f":"('[3]Pres & Prop Rev'!H23*(0))/1000","v":0},{"$f":"E22+L22","v":238.12927999999934},{"$f":"(M22)/H22","v":2.080924232573322E-2},null,"from below",null,{"$f":"(E22+L22)/D22","v":2.1858559064761186E-2},{"$f":"E22+H22+L22","v":11681.56755},null,{"$f":"#REF!/H22","v":{"$error":"#REF!"}},{"$f":"#REF!/H22","v":{"$error":"#REF!"}}]
[]
[6,"Street & Area Lights","41-48",6870.5681202796004,149.70324035639968,7020.5713606360005,2.1789062816294068E-2,7222.8842058432301,149.70324035639968,2.0726241220272019E-2,{"$f":"'[3]Adder Schedule'!H21/1000","v":{"$error":"#DIV/0!"}},{"$f":"('[3]Pres & Prop Rev'!I23*(0))/1000","v":0},{"$f":"E24+L24","v":149.70324035639968},{"$f":"(M24)/H24","v":2.0726241220272019E-2},null,"from Pres & Prop Rev tab",null,{"$f":"(E24+L24)/D24","v":2.1789062816294068E-2},{"$f":"E24+H24+L24","v":7372.58744619963},null,{"$f":"#REF!/H24","v":{"$error":"#REF!"}},{"$f":"#REF!/H24","v":{"$error":"#REF!"}}]
[]
[7,"Total",null,{"$f":"SUM(D14:D24)","v":492134.04445027962},{"$f":"SUM(E14:E24)","v":10763.286580356356},{"$f":"SUM(F14:F24)","v":502897.43103063595},{"$f":"E26/D26","v":2.1870640126876596E-2},{"$f":"SUM(H14:H24)","v":523528.86196584319},{"$f":"E26","v":10763.286580356356},2.0559108317238468E-2,{"$f":"SUM(K14:K25)","v":{"$error":"#DIV/0!"}},{"$f":"SUM(L14:L24)","v":0},{"$f":"E26+L26","v":10763.286580356356},{"$f":"(M26)/H26","v":2.0559108317238468E-2},null,"from below",null,{"$f":"(E26+L26)/D26","v":2.1870640126876596E-2},{"$f":"E26+H26+L26","v":534292.14854619955},null,{"$f":"#REF!/H26","v":{"$error":"#REF!"}},{"$f":"#REF!/H26","v":{"$error":"#REF!"}}]
[]
[null,null,null,{"$f":"IF(Base1_Billing2=2,\"Exhibit won't work until Base1_Billing2 range set to '1'\",\"\")","v":""}]
[]
[]
["(1) Excludes all present rate adjustments:  Schedule 59 (BPA Residential Exchange), Schedule 91 (DSM), "]
["     Schedule 92 (LIRAP), Schedule 93 (ERM), and Schedule 98 (REC Revenue)."]
[]
["(2) Includes all present rate adjustments:  Schedule 59 (BPA Residential Exchange), Schedule 91 (DSM), "]
["     Schedule 92 (LIRAP), Schedule 93 (ERM), and Schedule 98 (REC Revenue)."]
[]
[]
[null,"reduce billed revenue for BPA ResEx (already accounted for in Schs 1 & 48)"]
[null,null,null,null,null,"Billing",null,null,"Billed Revenue"]
[null,null,null,null,null,"Determinants",null,"Sch 59 Rate","Impact"]
[null,"Schedule 12 only",null,null,null,{"$f":"'[3]Rev Runs 12MESEPT2014'!P49+'[3]Rev Runs 12MESEPT2014'!P81+'[3]Rev Runs 12MESEPT2014'!P90","v":57963673},null,-2.7E-4,{"$f":"F41*H41","v":-15650.191710000001}]
[null,"Schedule 22 only",null,null,null,{"$f":"'[3]Rev Runs 12MESEPT2014'!P51+'[3]Rev Runs 12MESEPT2014'!P83+'[3]Rev Runs 12MESEPT2014'!P92","v":36956089},null,-2.7E-4,{"$f":"F42*H42","v":-9978.1440299999995}]
[null,"Schedule 32 only",null,null,null,{"$f":"'[3]Rev Runs 12MESEPT2014'!P55+'[3]Rev Runs 12MESEPT2014'!P86+'[3]Rev Runs 12MESEPT2014'!P95","v":8649684},null,-2.7E-4,{"$f":"F43*H43","v":-2335.4146799999999}]
[]
[null,"Total",null,null,null,{"$f":"SUM(F41:F44)","v":103569446},null,null,{"$f":"SUM(I41:I44)","v":-27963.750420000004},"Manually deducted in Column H"]
[]
[]
[null,null,null,null,null,null,null,null,null,"ERM Reduction Calc",null,0,1,{"$f":"-D14*$L$49","v":0},null,{"$f":"0/'[3]Pres & Prop Rev'!D23","v":0},{"$f":"(D14/$D$26)*$N$54","v":0}]
[null,null,null,null,null,null,null,null,null,null,null,{"$f":"L48/D26","v":0},11,{"$f":"-D16*L49","v":0},null,null,{"$f":"(D16/$D$26)*$N$54","v":0}]
[null,null,null,null,null,null,null,null,null,null,null,null,21,{"$f":"-D18*L49","v":0},null,null,{"$f":"(D18/$D$26)*$N$54","v":0}]
[null,null,null,null,null,null,null,null,null,null,null,null,25,{"$f":"-D20*L49","v":0},null,null,{"$f":"(D20/$D$26)*$N$54","v":0}]
[null,null,null,null,null,null,null,null,null,null,null,null,31,{"$f":"-D22*L49","v":0},null,null,{"$f":"(D22/$D$26)*$N$54","v":0}]
[null,null,null,null,null,null,null,null,null,null,null,null,"41-48",{"$f":"-D24*L49","v":0},null,null,{"$f":"(D24/$D$26)*$N$54","v":0}]
[null,null,null,null,null,null,null,null,null,null,null,null,null,{"$f":"SUM(N48:N53)","v":0},null,null,{"$f":"SUM(Q48:Q53)","v":0}]